[Event "Kvika Banki League Iceland 2022-23"]
[Site "Reykjavik"]
[Date "2022.10.16"]
[Round "5.2"]
[White "Danielsen, Henrik"]
[Black "Kjartansson, Gudmundur"]
[Result "0-1"]
[ECO "D30"]
[WhiteElo "2521"]
[BlackElo "2456"]
[Annotator "TA"]
[PlyCount "50"]
[EventDate "2022.10.13"]
[EventType "team-tourn"]
[EventCountry "ISL"]
[SourceTitle "playchess.com"]
[Source "ChessBase"]
[SourceQuality "1"]
[TimeControl "5400+30"]

{[%evp 9,50,5,4,-42,-31,-24,-27,-34,-31,-40,-44,-47,-46,-47,-45,-86,-68,-66,-58,-63,-56,-72,-72,-76,-83,-76,-94,-84,-66,-72,-75,-138,-129,-250,-238,-395,-257,-663,-655,-616,-432,-369,-335]} 1. d4 {[%emt 0:00:48]} Nf6 {[%emt 0:00:06]} 2. Nf3 {[%emt 0:00:10]} e6 {[%emt 0:00:10]} 3. c4 {[%emt 0:00:35]} d5 {[%emt 0:00:07]} 4. Bg5 {[%emt 0:03:37]} dxc4 {[%emt 0:01:25]} 5. Qa4+ {[%emt 0:00:59]} Nbd7 {[%emt 0:00:34]} 6. Nbd2 {[%emt 0:09:47] D30: Queen's Gambit Declined: Systems without Nc3.} (6. e3 $11) 6... a6 $15 {[%emt 0:01:21]} 7. Qxc4 {[%emt 0:01:16]} c5 {[%emt 0:00:31]} 8. e3 {[%emt 0:11:47] Black has an edge.} b5 {[%emt 0:03:04]} 9. Qc2 {[%emt 0:03:35]} Bb7 {[%emt 0:01:17]} 10. dxc5 {[%emt 0:00:49]} Bxc5 {[%emt 0:00:57]} 11. Bd3 {[%emt 0:01:42]} Rc8 {[%emt 0:00:18] ...Bxf3 is the strong threat.} 12. Qb1 {[%emt 0:00:24]} h6 {[%emt 0:00:31] [#]} (12... Bb4 {feels hotter.} 13. Ke2 Nc5 14. Rc1 Ke7) 13. Bxf6 $146 {[%emt 0:00:30]} ({Predecessor:} 13. Bh4 O-O 14. O-O Qb6 15. a4 Rfd8 16. Rd1 Be7 17. axb5 axb5 18. Nd4 Nf8 19. Bf1 {½-½ (47) Wojtaszek,R (2696)-Moranda,W (2630) Kruszwica 2022}) 13... Nxf6 {[%emt 0:00:48]} ({Reject} 13... gxf6 14. Be4 Bxe4 15. Qxe4 $11) 14. O-O {[%emt 0:00:16]} O-O {[%emt 0:00:53]} 15. a4 {[%emt 0:01:11] [#]} Qb6 $1 {[%emt 0:07:01]} 16. axb5 {[%emt 0:00:20]} axb5 {[%emt 0:00:10]} 17. Nb3 {[%emt 0:04:04] [#]} Bxe3 $1 {[%emt 0:18:35]} 18. fxe3 {[%emt 0:00:30]} Qxe3+ {[%emt 0:00:05]} 19. Kh1 {[%emt 0:00:02] [#]} Ng4 $1 {[%emt 0:03:07][%cal Bf6g4,Bg4f2,Bf2e4][%mdl 1056] Black has strong compensation.} 20. Bh7+ {[%emt 0:04:58]} ({White should play} 20. Nbd2) 20... Kh8 $17 {[%emt 0:00:06] aiming for ...f5. Black is much more active.} 21. Na5 {[%emt 0:00:37]} (21. Nbd4 $17 {keeps fighting.}) 21... Ba8 $19 {[%emt 0:03:34] Strongly threatening ...Qf4.} 22. Ra3 $2 {[%emt 0:05:57]} (22. Bd3 Rfd8 23. Bxb5 Bxf3 24. Rxf3 (24. gxf3 {leads to mate.} Rd2)) 22... Qb6 {[%emt 0:08:57] And now ...Nf2+ would win.} 23. b4 $2 {[%emt 0:19:37]} (23. Bd3 Nf2+ 24. Rxf2 Qxf2 25. Qf1 Qxb2 26. Rb3) 23... Nf2+ {[%emt 0:07:57]} 24. Kg1 {[%emt 0:10:59]} Ne4+ {[%emt 0:00:42]} 25. Kh1 {[%emt 0:00:14]} Kxh7 {[%emt 0:00:21] Weighted Error Value: White=0.66/Black=0.30} 0-1

[Event "Kvika Banki League Iceland 2022-23"]
[Site "Reykjavik"]
[Date "2022.10.16"]
[Round "5.3"]
[White "Sulypa, Oleksandr"]
[Black "Ahlander, Bjorn"]
[Result "1/2-1/2"]
[ECO "B90"]
[WhiteElo "2463"]
[BlackElo "2406"]
[Annotator "TA"]
[PlyCount "101"]
[EventDate "2022.10.13"]
[EventType "team-tourn"]
[EventCountry "ISL"]
[SourceTitle "playchess.com"]
[Source "ChessBase"]
[SourceQuality "1"]
[TimeControl "5400+30"]

{[%evp 14,101,34,34,25,26,43,17,64,53,68,35,79,81,72,77,131,121,153,140,141,142,135,138,133,133,133,133,162,129,185,125,150,110,152,141,155,87,114,105,141,118,136,127,115,102,104,111,111,111,108,96,93,-11,-10,-9,-12,-51,-53,-202,-181,-188,-197,-219,-226,-202,-212,-249,-96,-148,-104,-177,-127,-281,-208,-264,-249,-249,-223,-316,0,-266,-260,-222,0,0,0,0,-8,-52]} 1. e4 {[%emt 0:00:02]} c5 {[%emt 0:00:13]} 2. Nf3 {[%emt 0:00:04]} d6 {[%emt 0:00:05]} 3. d4 {[%emt 0:00:06]} cxd4 {[%emt 0:00:05]} 4. Nxd4 {[%emt 0:00:03]} Nf6 {[%emt 0:00:10]} 5. Nc3 {[%emt 0:00:01]} a6 {[%emt 0:00:48]} 6. h3 {[%emt 0:00:11]} g6 {[%emt 0:00:32]} 7. g4 {[%emt 0:00:38]} Bg7 {[%emt 0:00:27]} 8. Bg2 {[%emt 0:00:08]} O-O {[%emt 0:00:47] B90: Sicilian Najdorf: Unusual White 6th moves, 6 Be3 Ng4 and 6 Be3 e5.} 9. Be3 {[%emt 0:00:08]} Nc6 {[%emt 0:03:51]} 10. Qd2 {[%emt 0:00:18]} Bd7 {[%emt 0:11:33]} (10... Nd7 $11) 11. O-O-O {[%emt 0:00:18]} Rc8 {[%emt 0:00:50]} 12. Kb1 {[%emt 0:00:14] [#]} Re8 $146 {[%emt 0:03:27]} ({Predecessor:} 12... b5 13. g5 b4 14. Nce2 Nh5 15. Bf3 Ne5 16. Bxh5 Nc4 17. Qd3 gxh5 18. Bc1 Bb5 {½-½ (29) Stoyanov,Z (2466)-Yamaliev,V (2470) ICCF email 2014}) 13. f4 {[%emt 0:19:52]} Na5 {[%emt 0:05:17]} 14. b3 {[%emt 0:00:20] Inhibits Nc4.} Nc6 {[%emt 0:00:15] Against e5} (14... e5 $142) 15. Nde2 $1 $16 {[%emt 0:13:05][%cal Bd4e2,Be2g3,Bg3f5][%mdl 32]} Qa5 {[%emt 0:10:24] [#]} 16. Na4 $1 {[%emt 0:07:04]} Qxd2 {[%emt 0:02:10]} 17. Rxd2 {[%emt 0:04:40]} Be6 {[%emt 0:02:47]} 18. Nb6 {[%emt 0:25:24] Black must now prevent f5.} Rcd8 {[%emt 0:01:40]} 19. Ng3 {[%emt 0:01:24]} h6 {[%emt 0:08:10]} 20. c4 {[%emt 0:02:06]} Rb8 {[%emt 0:11:02]} 21. Rhd1 {[%emt 0:01:55]} Nh7 {[%emt 0:06:08]} (21... Nd7 $16) 22. a3 {[%emt 0:01:26]} (22. c5 $18) 22... g5 {[%emt 0:13:12]} 23. Nf5 {[%emt 0:02:47]} f6 {[%emt 0:03:12]} 24. Nd5 {[%emt 0:03:00]} Bf7 {[%emt 0:01:23]} 25. b4 {[%emt 0:03:03] White has more active pieces.} (25. h4 $142) 25... Bf8 {[%emt 0:00:43]} 26. Nb6 {[%emt 0:00:08]} h5 {[%emt 0:02:55]} 27. gxh5 {[%emt 0:02:31]} Bxh5 {[%emt 0:00:04]} 28. Rg1 {[%emt 0:00:05]} Kh8 {[%emt 0:01:52]} 29. fxg5 {[%emt 0:05:21]} Nxg5 {[%emt 0:01:46]} 30. Bxg5 {[%emt 0:00:46]} fxg5 {[%emt 0:00:03]} 31. Bh1 {[%emt 0:00:13]} Ne5 {[%emt 0:03:22]} 32. Rxg5 {[%emt 0:00:11]} Bf7 {[%emt 0:00:12]} 33. Rdg2 {[%emt 0:02:05]} (33. Rf2 $16 {Rf4 is the strong threat.} e6 34. Ne3) 33... e6 $11 {[%emt 0:01:41]} 34. Ng7 $132 {[%emt 0:02:37][%mdl 2048] White puts up resistance. Pair of Knights!} Re7 {[%emt 0:03:17][%cal Of7g6]} 35. c5 {[%emt 0:04:36]} Bg6 {[%emt 0:00:58]} 36. Rxg6 {[%emt 0:00:55]} (36. Rxe5 $15 dxe5 37. Rxg6 Rxg7 38. Rxg7 Kxg7 39. Bf3) 36... Nxg6 $19 {[%emt 0:00:10]} 37. Rxg6 {[%emt 0:00:03]} Rxg7 {[%emt 0:00:45]} 38. Rxg7 {[%emt 0:00:06]} Kxg7 {[%emt 0:00:42]} 39. cxd6 {[%emt 0:00:03]} Bxd6 $15 {[%emt 0:00:35][%mdl 4096] Endgame Hoping for ...Rf8. KRB-KBN} 40. e5 {[%emt 0:00:25]} Be7 {[%emt 0:01:13]} (40... Bxe5 $19 {has better winning chances. Strongly threatening ...Bd4.} 41. Kc2 (41. Nd7 $2 Rd8 $19) 41... Bd4) 41. Ka2 {[%emt 0:01:55]} (41. Bf3 $142) 41... Kg6 {[%emt 0:01:13]} 42. Kb3 {[%emt 0:00:07]} (42. Bf3 $17 {was called for.}) 42... Kg5 {[%emt 0:00:13]} (42... Kf5 $19 43. Kc2 Rh8) 43. a4 $2 {[%emt 0:00:30]} (43. Bf3 $17) 43... Rd8 {[%emt 0:01:11]} 44. a5 {[%emt 0:00:45]} Rd4 {[%emt 0:00:25]} 45. Nc4 {[%emt 0:00:20]} Rd3+ {[%emt 0:00:29]} 46. Ka4 {[%emt 0:00:23]} (46. Kc2 {was necessary.} Rd7 47. Kb3) 46... Rd4 $2 {[%emt 0:00:42]} ({Not} 46... Rxh3 47. Bxb7 Kf4 48. Bxa6 $11) (46... Rd1 $19 47. Bxb7 Rb1) 47. Nd6 $2 {[%emt 0:00:39][%mdl 8192]} (47. Kb3 $11) 47... Kf4 $19 {[%emt 0:00:22]} 48. Kb3 {[%emt 0:00:22] [#]} Bxd6 $2 {[%emt 0:00:26]} ({Inferior is} 48... Kxe5 49. Nc4+ Kf4 50. Bxb7 $17) ({Black should try} 48... Rd3+ $1 $19 49. Ka4 Rd1 50. Bxb7 Rb1 51. Bxa6 Kxe5 52. Nc4+ Kd5) 49. exd6 $11 {[%emt 0:00:06] The position is equal.} e5 {[%emt 0:00:33] ( -> ...e4)} 50. Bxb7 {[%emt 0:00:20]} Rxd6 {[%emt 0:00:09] aiming for ...e4.} 51. b5 $1 {[%emt 0:01:29] Weighted Error Value: White=0.36/Black=0.33} 1/2-1/2

[Event "Kvika Banki League Iceland 2022-23"]
[Site "Reykjavik"]
[Date "2022.10.16"]
[Round "5.4"]
[White "Gunnarsson, Arnar"]
[Black "Petursson, Margeir"]
[Result "1/2-1/2"]
[ECO "A36"]
[WhiteElo "2397"]
[BlackElo "2447"]
[Annotator "TA"]
[PlyCount "50"]
[EventDate "2022.10.13"]
[EventType "team-tourn"]
[EventCountry "ISL"]
[SourceTitle "playchess.com"]
[Source "ChessBase"]
[SourceQuality "1"]
[TimeControl "5400+30"]

{[%evp 18,21,14,9,9,7]} 1. c4 {[%emt 0:00:06]} c5 {[%emt 0:00:10]} 2. Nc3 {[%emt 0:00:22]} g6 {[%emt 0:00:07]} 3. g3 {[%emt 0:00:14]} Bg7 {[%emt 0:00:09]} 4. Bg2 {[%emt 0:00:04]} Nc6 {[%emt 0:00:16]} 5. e3 {[%emt 0:00:11]} e6 {[%emt 0:00:23]} 6. Nge2 {[%emt 0:00:15]} Nge7 {[%emt 0:00:12]} 7. O-O {[%emt 0:00:08]} O-O {[%emt 0:00:25]} 8. d4 {[%emt 0:00:09]} cxd4 {[%emt 0:00:15]} 9. Nxd4 {[%emt 0:00:27]} Nxd4 {[%emt 0:00:19]} 10. exd4 {[%emt 0:00:05]} d5 {[%emt 0:00:18] A36: Symmetrical English vs ...g6: 4 Bg2 Bg7.} 11. cxd5 {[%emt 0:00:32] [#] A rather calm draw.} {Predecessor:} Nxd5 $146 12. Re1 Qb6 13. Bxd5 exd5 14. Nxd5 Qxd4 15. Qxd4 Bxd4 16. Nc7 Rb8 17. Nb5 Bb6 18. Bh6 Rd8 19. Bf4 Ra8 20. Nc7 Bxc7 21. Bxc7 Rf8 22. Bd6 Rd8 23. Bc7 Rf8 24. Bd6 Rd8 25. Bc7 Rf8 {½-½ (25) Cordova,E (2544)-Hernandez Guerrero,G (2564) Chihuahua City 2022} 1/2-1/2

[Event "Kvika Banki League Iceland 2022-23"]
[Site "Reykjavik"]
[Date "2022.10.16"]
[Round "5.5"]
[White "Thorhallsson, Throstur"]
[Black "Hansen, Soren Bech"]
[Result "1/2-1/2"]
[ECO "B33"]
[WhiteElo "2396"]
[BlackElo "2275"]
[Annotator "TA"]
[PlyCount "77"]
[EventDate "2022.10.13"]
[EventType "team-tourn"]
[EventCountry "ISL"]
[SourceTitle "playchess.com"]
[Source "ChessBase"]
[SourceQuality "1"]
[TimeControl "5400+30"]

{[%evp 13,77,30,43,37,39,37,36,24,43,12,33,0,18,22,32,0,0,-42,-20,-31,0,-15,0,0,32,-1,0,0,0,0,0,0,0,0,33,0,14,-17,0,0,0,0,0,0,0,0,0,0,0,-2,-7,-52,-9,-23,0,0,0,0,0,0,0,0,0,0,0,0]} 1. e4 {[%emt 0:01:37]} c5 {[%emt 0:00:07]} 2. Nf3 {[%emt 0:00:55]} Nc6 {[%emt 0:00:09]} 3. d4 {[%emt 0:00:22]} cxd4 {[%emt 0:00:05]} 4. Nxd4 {[%emt 0:00:04]} Qb6 {[%emt 0:00:06]} 5. Nb3 {[%emt 0:00:29]} Nf6 {[%emt 0:00:07]} 6. Nc3 {[%emt 0:00:38]} e6 {[%emt 0:00:06]} 7. Bd3 {[%emt 0:01:36]} d6 {[%emt 0:00:09]} 8. f4 {[%emt 0:04:50] B33: Sicilian: Pelikan and Sveshnikov Variations.} a6 {[%emt 0:01:56]} 9. Qf3 {[%emt 0:01:04]} Qc7 {[%emt 0:01:23]} 10. O-O {[%emt 0:00:59] White is slightly better.} b5 {[%emt 0:03:47]} 11. Bd2 {[%emt 0:11:15]} Bb7 {[%emt 0:00:35]} 12. Rae1 {[%emt 0:00:58]} Be7 {[%emt 0:17:58]} 13. Qh3 {[%emt 0:03:43]} b4 {[%emt 0:10:51]} 14. Nd1 {[%emt 0:05:33] [#]} a5 $146 {[%emt 0:03:08][%cal Ba6a5,Ba5a4][%mdl 32]} ({Predecessor:} 14... g6 15. Ne3 O-O 16. Rf3 Rfe8 17. Ng4 Nxg4 18. Qxg4 Bf6 19. Rh3 Bxb2 20. f5 exf5 {1-0 (28) Stypka,M (2265)-Adamski,J (2400) Krynica 1988}) 15. c4 {[%emt 0:06:57]} a4 {[%emt 0:09:29]} 16. Nc1 {[%emt 0:01:13]} Nd7 {[%emt 0:05:08]} 17. Ne3 {[%emt 0:08:59]} Nc5 {[%emt 0:01:54]} 18. f5 {[%emt 0:10:11]} Bf6 {[%emt 0:05:32]} 19. b3 {[%emt 0:07:28]} Ne5 {[%emt 0:04:54]} 20. Ng4 {[%emt 0:05:12]} Nxg4 {[%emt 0:07:24]} ({Don't do} 20... Nexd3 21. Nxf6+ gxf6 22. Nxd3 $14) 21. Qxg4 {[%emt 0:00:07]} Qb6 {[%emt 0:04:32][%csl LRb3,LRd3,LRe4]} 22. Kh1 {[%emt 0:01:55]} e5 {[%emt 0:00:21]} 23. Bc2 {[%emt 0:01:27]} h6 {[%emt 0:03:14]} 24. Be3 {[%emt 0:02:28]} (24. Nd3 $5 {[%cal Rd3b4]}) 24... Qc7 {[%emt 0:01:05]} 25. Bf2 {[%emt 0:03:01]} Bc6 {[%emt 0:02:40]} 26. Nd3 {[%emt 0:01:54]} Nxd3 {[%emt 0:02:37]} 27. Bxd3 {[%emt 0:00:06]} axb3 {[%emt 0:00:41]} 28. axb3 {[%emt 0:00:04]} Ra3 {[%emt 0:00:26]} 29. Bc2 {[%emt 0:01:50]} O-O {[%emt 0:00:40]} 30. Be3 {[%emt 0:02:53]} Kh7 {[%emt 0:00:48]} 31. Rf3 {[%emt 0:00:53]} Rfa8 {[%emt 0:01:09]} 32. Rd1 {[%emt 0:06:37]} Ra1 {[%emt 0:00:39] And now ...Rxd1+ would win.} (32... Ra2 $5 {[%cal Ra2c2]} 33. Rf2 R8a3 $15) 33. Rff1 {[%emt 0:01:06]} Rxd1 {[%emt 0:00:21]} (33... R1a2 {is more complex.} 34. Bd3 Qb7 35. h3 R8a5) 34. Qxd1 {[%emt 0:00:31] The position is equal.} Be7 {[%emt 0:03:31]} 35. h3 {[%emt 0:00:38]} Qb7 {[%emt 0:00:17]} 36. Qd3 {[%emt 0:01:57]} Ra2 {[%emt 0:00:28]} 37. Rd1 {[%emt 0:01:37]} Qa8 {[%emt 0:01:13][%cal Oa2c2]} 38. Kh2 {[%emt 0:00:40]} Kg8 {[%emt 0:00:19]} 39. Bb1 {[%emt 0:01:29] Weighted Error Value: White=0.13 (very precise) /Black=0.10 (very precise)} 1/2-1/2

[Event "Kvika Banki League Iceland 2022-23"]
[Site "Reykjavik"]
[Date "2022.10.16"]
[Round "5.6"]
[White "Viglundsson, Bjorgvin"]
[Black "Johannesson, Ingvar Thor"]
[Result "1/2-1/2"]
[ECO "A61"]
[WhiteElo "2205"]
[BlackElo "2319"]
[Annotator "TA"]
[PlyCount "43"]
[EventDate "2022.10.13"]
[EventType "team-tourn"]
[EventCountry "ISL"]
[SourceTitle "playchess.com"]
[Source "ChessBase"]
[SourceQuality "1"]
[TimeControl "5400+30"]

{[%evp 18,30,45,27,50,50,40,44,47,39,71,60,65,60,54]} 1. d4 {[%emt 0:00:02]} Nf6 {[%emt 0:04:43]} 2. c4 {[%emt 0:00:24]} c5 {[%emt 0:01:40]} 3. d5 {[%emt 0:00:06]} e6 {[%emt 0:00:44]} 4. Nc3 {[%emt 0:03:36]} exd5 {[%emt 0:00:15]} 5. cxd5 {[%emt 0:00:05]} d6 {[%emt 0:00:04]} 6. Nf3 {[%emt 0:00:24]} g6 {[%emt 0:00:04]} 7. h3 {[%emt 0:00:25]} Bg7 {[%emt 0:01:32]} 8. Bf4 {[%emt 0:00:56]} O-O {[%emt 0:00:16]} 9. e3 {[%emt 0:00:06]} a6 {[%emt 0:00:28]} 10. a4 $1 {[%emt 0:00:04]} Qe7 {[%emt 0:00:34] A61: Modern Benoni: Nf3 without early e4.} 11. Be2 {[%emt 0:02:53]} Nbd7 {[%emt 0:03:57]} 12. O-O {[%emt 0:00:36]} Ne8 {[%emt 0:00:15]} 13. a5 {[%emt 0:03:14]} Ne5 {[%emt 0:03:01]} 14. Nd2 {[%emt 0:01:13]} f5 {[%emt 0:13:52]} 15. Bg3 {[%emt 0:09:06] White is more active.} g5 {[%emt 0:26:30] [#] Black got outplayed after the opening.  Weighted Error Value: White=0.02 (flawless) /Black=0.13 (very precise)} {Predecessor:} 16. f4 $146 Ng6 17. Nc4 h6 18. Qd3 Bd7 19. Bh5 Qf6 20. Nb6 Rd8 21. Kh2 Nc7 22. Rf2 {1-0 (37) Decker,N (2034)-Fuchs,D (1865) Wroclaw 2017} 1/2-1/2

[Event "Kvika Banki League Iceland 2022-23"]
[Site "Reykjavik"]
[Date "2022.10.16"]
[Round "5.7"]
[White "Domalchuk-Jonasson, Aleksandr"]
[Black "Einarsson, Arnthor"]
[Result "1-0"]
[ECO "E72"]
[WhiteElo "2300"]
[BlackElo "2173"]
[Annotator "TA"]
[PlyCount "77"]
[EventDate "2022.10.13"]
[EventType "team-tourn"]
[EventCountry "ISL"]
[SourceTitle "playchess.com"]
[Source "ChessBase"]
[SourceQuality "1"]
[TimeControl "5400+30"]

{[%evp 15,77,50,87,51,69,60,55,0,37,37,27,33,30,41,40,0,39,0,0,0,37,9,39,40,62,52,138,28,26,39,42,-34,0,0,0,0,0,0,0,0,0,-22,0,0,0,0,0,0,589,569,563,10,513,498,618,616,5502,5381,5161,3472,2114,1737,1153,904]} 1. d4 {[%emt 0:00:04]} Nf6 {[%emt 0:01:14]} 2. c4 {[%emt 0:00:13]} c5 {[%emt 0:00:11]} 3. d5 {[%emt 0:00:06]} e5 {[%emt 0:00:07]} 4. Nc3 {[%emt 0:00:52]} d6 {[%emt 0:00:07]} 5. e4 {[%emt 0:00:13]} g6 {[%emt 0:00:09]} 6. g3 {[%emt 0:01:42]} Bg7 {[%emt 0:00:16]} 7. Bg2 {[%emt 0:00:12]} O-O {[%emt 0:00:14]} 8. Nge2 {[%emt 0:00:45]} Ne8 {[%emt 0:04:12]} 9. O-O {[%emt 0:01:29] E72: King's Indian: 4 e4 d6 5 g3.} f5 {[%emt 0:00:12]} 10. f4 {[%emt 0:01:53]} Nd7 {[%emt 0:00:39]} 11. h3 {[%emt 0:17:01] [#]} ({White should try} 11. exf5 $14 gxf5 12. fxe5 Nxe5 13. b3) 11... a6 $146 {[%emt 0:05:04][%cal Ob7b5]} ({Predecessor:} 11... Qe7 12. Qc2 Nef6 13. exf5 gxf5 14. Qxf5 Nb6 15. Qd3 e4 16. Nxe4 Bf5 17. N2c3 Rae8 {1-0 (28) Carstensen,J (2305)-Jacobsen,B (2337) Ballerup 2012}) 12. a4 {[%emt 0:01:20]} Nef6 {[%emt 0:03:08]} 13. exf5 {[%emt 0:05:31]} gxf5 {[%emt 0:00:12]} 14. fxe5 {[%emt 0:00:21]} Nxe5 {[%emt 0:00:31]} 15. b3 {[%emt 0:00:33]} (15. Nf4 $5 {[%cal Rf4e6]}) 15... Ne4 {[%emt 0:00:48]} 16. Qc2 {[%emt 0:15:47]} Nxc3 {[%emt 0:02:41]} 17. Nxc3 {[%emt 0:00:18]} Qf6 {[%emt 0:08:26]} (17... Ng6 $5 {[%cal Rf5f4]}) 18. Bd2 {[%emt 0:08:20]} Ng6 {[%emt 0:02:07][%cal Of5f4]} 19. Rae1 {[%emt 0:04:18]} Qd4+ {[%emt 0:00:41]} 20. Kh1 {[%emt 0:01:29]} Ne5 {[%emt 0:02:57]} (20... Rb8 $14) 21. Re3 {[%emt 0:06:59]} (21. Ne2 $16 Qd3 22. Qd1) 21... f4 $11 {[%emt 0:04:12]} 22. gxf4 {[%emt 0:04:45]} Rxf4 {[%emt 0:04:25]} 23. Rg1 {[%emt 0:08:38]} (23. Rxf4 $14 Qxf4 24. Qc1) 23... Rf2 {[%emt 0:08:19]} (23... Bf5 $5 {[%cal Rf5c2]} 24. Qc1 (24. Be4 Nf3 $17) 24... Rf2 $15) 24. Ne2 $1 {[%emt 0:02:57][%cal Bc3e2,Be2f4,Bf4e6][%mdl 32]} Qh4 {[%emt 0:00:29]} 25. Be1 {[%emt 0:00:59]} Ng4 {[%emt 0:06:49]} 26. Rf3 {[%emt 0:02:52] [#] Qe4 is the strong threat.} (26. Bxf2 $2 Nxf2+ 27. Kh2 Ng4+ 28. Kh1 Nxe3 $19) 26... Bd7 $1 {[%emt 0:06:37]} (26... Be5 $2 27. Qe4 $18 (27. Rf1 Rxf1+ 28. Rxf1 Qh6 $11)) 27. Nf4 $36 {[%emt 0:04:19][%mdl 2048] White has some pressure. Really sharp!} ({Of course not} 27. Bxf2 Nxf2+ 28. Rxf2 Qxf2 $17) 27... Bd4 {[%emt 0:05:55]} 28. Rf1 {[%emt 0:05:23]} Rxf1+ {[%emt 0:12:02]} (28... Qxh3+ $2 29. Bxh3 Rxc2 30. Bxg4 Bxg4 31. Rg3 $18) 29. Rxf1 {[%emt 0:00:01]} Qh6 {[%emt 0:00:59] [#] Threatens to win with ...Ne3.} 30. Ne6 {[%emt 0:02:57]} Ne3 {[%emt 0:04:46]} 31. Bd2 {[%emt 0:00:35]} Kh8 $2 {[%emt 0:12:03][%mdl 8192]} ({Much less strong is} 31... Nxc2 32. Bxh6 Be3 33. Be4 Bxh6 34. Bxc2 $16) (31... Bxe6 $11 32. Bxe3 Qxe3 33. dxe6 Rf8) 32. Bxe3 $18 {[%emt 0:03:01]} Qxe3 {[%emt 0:00:53]} 33. Qf5 {[%emt 0:00:25]} (33. Nxd4 $18 {[%cal Of1f7] Black must now prevent Rf7!} Bxh3 34. Ne6 Bxg2+ 35. Qxg2 Qh6+ 36. Qh2 Qxh2+ 37. Kxh2) 33... Qh6 $2 {[%emt 0:01:36][%mdl 8192] Black cannot hold the game after this.} (33... Rg8 $11 {and Black is okay.}) 34. Qf7 {[%emt 0:00:26] White is clearly winning.} Bxe6 {[%emt 0:01:17]} 35. dxe6 {[%emt 0:00:06][%cal Bd5e6,Be6e7][%mdl 32] Intending e7 and mate.} Qg7 {[%emt 0:00:45]} 36. e7 {[%emt 0:00:31]} Qxf7 {[%emt 0:00:22]} 37. Rxf7 {[%emt 0:00:04] Threatening mate with Rf8+.} Bg7 {[%emt 0:01:43] Inhibits Rf8+.} 38. Bxb7 {[%emt 0:00:12]} Rb8 {[%emt 0:00:16]} 39. Bc6 {[%emt 0:00:05] Weighted Error Value: White=0.32/Black=0.58} 1-0